Department Family,Entity,Date,Expense Type,Expense Area,Supplier Name,Transaction Number,Amount,Description
York Teaching Hospital NHS Foundation Trust,York Teaching Hospital Facilities Management LLP BU,04/03/2020,Work-In-Progress,Opthalmology,F. Parkinson Ltd,9666,36000,North- Dental Education Centre,SGH CAPITAL SCHEME  314384 � (WILLOW PROJECT)  - REFURBISH WORKS TO CREATE NEW OPHTHALMOLOGY DAY UNIT SCARBOROUGH SITE � LIZ  VINCENT - MTC FRAMEWORK - CONSTRUCTION WORKS - 2016/S 051-084291,,CONSUMABLES SERVICE,CONSUMABLES SERVICE,,314384
York Teaching Hospital NHS Foundation Trust,York Teaching Hospital Facilities Management LLP BU,04/03/2020,External Contracts : Laundry,LLP Laundry & Linen,Synergy Health Managed Services Ltd,40003522,58943.27,LLP Laundry & Linen - Scarb,"LAUNDRY CONTRACT FOR SCARBOROUGH, BRIDLINGTON & MALTON AS PER CPC FRAMEWORK CRE00064",,LLP ESTATES & FACILITIES_OLD,LLP OPERATIONAL FACILITIES - SCARBOROUGH,,253027
York Teaching Hospital NHS Foundation Trust,York Teaching Hospital Facilities Management LLP BU,04/03/2020,External Contracts : Laundry,LLP Laundry & Linen,Synergy Health Managed Services Ltd,40003522,58943.27,LLP Laundry & Linen - Scarb,RCBF400001420,BA STD REC,LLP ESTATES & FACILITIES_OLD,LLP OPERATIONAL FACILITIES - SCARBOROUGH,,253027
York Teaching Hospital NHS Foundation Trust,York Teaching Hospital Facilities Management LLP BU,04/03/2020,External Contracts : Laundry,LLP Linen,Synergy Health Managed Services Ltd,40003523,71095.51,LLP Linen Contract Sts,Repalces RCBN400001703 - 01/10/2017 - 30/09/2018 LAUNDRY CONTRACT FOR YORK & COMMUNITY AS PER CPC FRAMEWORK REFERENCE CRE00064,,LLP ESTATES & FACILITIES_OLD,LLP OPERATIONAL FACILITIES - YORK,,212890
York Teaching Hospital NHS Foundation Trust,York Teaching Hospital Facilities Management LLP BU,04/03/2020,Vat Debtor < One Year,LLP,Synergy Health Managed Services Ltd,40003523,71095.51,LLP Dr Vat Debtor,RCBF400000184,BA STD REC,LLP FINANCE - BALANCE SHEET,LLP DEBTORS,,219405
York Teaching Hospital NHS Foundation Trust,York Teaching Hospital Facilities Management LLP BU,04/03/2020,Electricity,LLP Utilities,Npower Ltd,LGWF4RRJ,41820.97,LLP Utilities York Hospital,Electricity for York Hospital 2019/20 (CN: F021/EST/15/RB),,LLP ESTATES & FACILITIES_OLD,LLP ENERGY & SUSTAINABILITY,,212970
York Teaching Hospital NHS Foundation Trust,York Teaching Hospital Facilities Management LLP BU,04/03/2020,Electricity,LLP Utilities,Npower Ltd,LGWF4RRK,28345.78,LLP Utilities Scarborough Hospital,Electricity for Scarborough Hospital 2019/20 (CN: F021/EST/15/RB),,LLP ESTATES & FACILITIES_OLD,LLP ENERGY & SUSTAINABILITY,,253530
York Teaching Hospital NHS Foundation Trust,York Teaching Hospital Facilities Management LLP BU,04/03/2020,Work-In-Progress,Capital,Protec Fire Detection Plc,SP001247-27,37964.5,LLP Sgh Fire Alarm Capital Scheme,RCBF400001787 - (REPLACES 4111153339) � PROTEC � CB - ORDER TO CARRY OUT SERVICES TO INSTALL REPLACEMENT FIRE ALARM SYSTEM SCARBOROUGH HOSPITAL  314020 - 112000,,TRANSPORT,TRANSPORT,,314020
York Teaching Hospital NHS Foundation Trust,York Teaching Hospital Facilities Management LLP BU,10/03/2020,Gas,LLP Utilities York Hospital,Total Gas & Power Ltd,207625380/20,99726.11,LLP Utilities York Hospital,Gas for York Hospital 2019/20 (CN: Y14070),,LLP ESTATES & FACILITIES_OLD,LLP ENERGY & SUSTAINABILITY,,212970
York Teaching Hospital NHS Foundation Trust,York Teaching Hospital Facilities Management LLP BU,10/03/2020,Gas,LLP Utilities Scarborough Hospital,Total Gas & Power Ltd,207625434/20,58888.86,LLP Utilities Scarborough Hospital,Gas for Scarborough Hospital 2019/20 (CN: Y14070),,LLP ESTATES & FACILITIES_OLD,LLP ENERGY & SUSTAINABILITY,,253530
York Teaching Hospital NHS Foundation Trust,York Teaching Hospital Facilities Management LLP BU,10/03/2020,Med Surg Eqpt Leasing,LLP Equipment Lease Charges,Siemens Financial Services Ltd,220/20/0005272,64654.2,LLP Equipment Lease Charges,Lease rental costs for rescheduled and novated medical leases as per the attached spreadsheet.,,LLP ESTATES & FACILITIES_OLD,LLP SPECIAL PROGRAMME,,214502
York Teaching Hospital NHS Foundation Trust,York Teaching Hospital Facilities Management LLP BU,11/03/2020,External Contracts : Laundry,LLP Linen,Synergy Health Managed Services Ltd,40003087A,91053.48,LLP Linen Contract Sts,"DUMMY WIRE FOR 62001067, 62001112, 40003087",,LLP ESTATES & FACILITIES_OLD,LLP OPERATIONAL FACILITIES - YORK,,212890
York Teaching Hospital NHS Foundation Trust,York Teaching Hospital Facilities Management LLP BU,17/03/2020,Minor Works,LLP York Hospital Site Expenses,Bender U K Ltd,37270,25810.8,LLP York Hospital Site Expenses,"QUOTE 190852531 -  FOR THE 51 TSE UPS ACROSS SITES - INCLUDES 1 X PPM VISITS TO BE COMPLETED IN HOURS, 6 HOURRAPID RESPONSE, EXCLUDING PARTS AND LABOUR",,LLP ESTATES & FACILITIES_OLD,LLP ESTATE SERVICES - YORK,,212861
York Teaching Hospital NHS Foundation Trust,York Teaching Hospital Facilities Management LLP BU,17/03/2020,Minor Works,LLP York Hospital Site Expenses,Bender U K Ltd,37270,25810.8,LLP York Hospital Site Expenses,"QUOTE 190852531 -  FOR THE 15 CPS UPS ACROSS 4 SITES - INCLUDING 1 X PPM IN HOURS ON 5 X UPS(2 X PPM ON 11UPS, 4 HOUR RAPID RESPONSE( APART FROM BEECH WARD UPS WHICH IS 24 HOUR), EXCLUDING PARTS ANDLABOUR",,LLP ESTATES & FACILITIES_OLD,LLP ESTATE SERVICES - YORK,,212861
York Teaching Hospital NHS Foundation Trust,York Teaching Hospital Facilities Management LLP BU,17/03/2020,Other Debtors < One Year,LLP,York Teaching Hospital Nhs Foundation Trust,1010077118,29696.63,LLP Consolidated Invoices,,,LLP FINANCE - BALANCE SHEET,LLP DEBTORS,,219418
York Teaching Hospital NHS Foundation Trust,York Teaching Hospital Facilities Management LLP BU,17/03/2020,X-Ray Equipment : Maintenance,LLP Care Group 4,Nhs Supply Chain - Maintenance,2010004385,29356.08,Annual Maintenance Contracts,"CN: 01/04/2018 - 31/03/2022 - LGM25115 - Maintenance of various pieces of ultrasound kit based at Scarborough, Bridlington, Whitby & Malton Hospitals - Ref no: CQ-254820",,LLP ESTATES & FACILITIES_OLD,LLP EBME,,212850
York Teaching Hospital NHS Foundation Trust,York Teaching Hospital Facilities Management LLP BU,17/03/2020,X-Ray Equipment : Maintenance,LLP Care Group 4,Nhs Supply Chain - Maintenance,2010004729,60302.4,Annual Maintenance Contracts,"REPLACES RCBN400016473 - CT SCANNER MAINTENANCE CONTRACT FOLLOWING WARRANTY PERIOD FROM 1 APRIL 2014 - 31 MARCH 2020 FOR AQUILION 128 CXL, SERIAL NO TCB12Y2037 LOCATED AT SCARBOROUGH HOSPITAL. LEVEL OF COVER - PREMIUM PLUS ",,LLP ESTATES & FACILITIES_OLD,LLP EBME,,212850
York Teaching Hospital NHS Foundation Trust,York Teaching Hospital Facilities Management LLP BU,17/03/2020,Med Surg Eqpt Mtce Contracts,LLP Medical Engineering - Sgh,Nhs Supply Chain - Maintenance,2010006017,35362.31,LLP Medical Engineering - Sgh,"2019/2020 - SCARBOROUGH SCOPES CONTRACT - CONTRACT LGM27735, SUPPLIER REF CQ-0000273343",,LLP ESTATES & FACILITIES_OLD,LLP EBME,,254730
York Teaching Hospital NHS Foundation Trust,York Teaching Hospital Facilities Management LLP BU,17/03/2020,Contract : Premises Security,LLP General Security,Ocs Group Uk Ltd,5000396313,87369.6,LLP General Security,1st June 19'- 31st May 20' OCS Contract YTH,,LLP ESTATES & FACILITIES_OLD,LLP HEALTH SAFETY & SECURITY,,212804
York Teaching Hospital NHS Foundation Trust,York Teaching Hospital Facilities Management LLP BU,17/03/2020,Staff Uniforms and Clothing,Uniforms,Behrens Healthcare,IN0135950,52455.72,LLP Clinical Uniforms,"CLINICAL UNIFORM ORDER FOR YORK, SELBY & COMMUNITY  - SPREADSHEETS ATTACHED",,LLP ESTATES & FACILITIES_OLD,LLP OPERATIONAL FACILITIES - YORK,,212891
York Teaching Hospital NHS Foundation Trust,York Teaching Hospital Facilities Management LLP BU,17/03/2020,Work-In-Progress,Capital,Specialist Hygiene Solutions Ltd,SHS5943,286862.4,Trust Board,Order for purchase of decontamination equipment to keep HPV services within the trust as per quotation prepared by Tom Lister dated 20/12/19,,OFFICE OF THE CHIEF EXECUTIVE,OFFICE OF THE CHIEF EXECUTIVE,,314001
York Teaching Hospital NHS Foundation Trust,York Teaching Hospital Facilities Management LLP BU,20/03/2020,Work-In-Progress,Capital,F. Parkinson Ltd,9686,139029.6,LLP Es612 External Works - York,PARK HOUSE & CONSULTANT'S CAR PARK WORKS - YTH � MTC FRAMEWORK - CONSTRUCTION WORKS - 2016/S 051-084291SITE CONTACT: SARAH KEW - 01904 724028,,LLP FINANCE - BALANCE SHEET,LLP WIP,,314309
York Teaching Hospital NHS Foundation Trust,York Teaching Hospital Facilities Management LLP BU,20/03/2020,External Contracts : Laundry,LLP Linen,Synergy Health Managed Services Ltd,40003549,67606.32,LLP Linen Contract Sts,Repalces RCBN400001703 - 01/10/2017 - 30/09/2018 LAUNDRY CONTRACT FOR YORK & COMMUNITY AS PER CPC FRAMEWORK REFERENCE CRE00064,,LLP ESTATES & FACILITIES_OLD,LLP OPERATIONAL FACILITIES - YORK,,212890
York Teaching Hospital NHS Foundation Trust,York Teaching Hospital Facilities Management LLP BU,20/03/2020,External Contracts : Laundry,LLP Linen,Synergy Health Managed Services Ltd,40003549,67606.32,LLP Linen Contract Sts,RCBF400000184,BA STD REC,LLP ESTATES & FACILITIES_OLD,LLP OPERATIONAL FACILITIES - YORK,,212890
York Teaching Hospital NHS Foundation Trust,York Teaching Hospital Facilities Management LLP BU,20/03/2020,Med Surg Eqpt Leasing,LLP Equipment Lease Charges,Siemens Financial Services Ltd,220/20/0006614,45869.67,LLP Equipment Lease Charges,"20 x 38,598.76 plus VAT payable quarterly in advance for the lease of Various Olympus Scopes (references LG28094 / Endoscopy SGH 2018 / 8873461)",,LLP ESTATES & FACILITIES_OLD,LLP SPECIAL PROGRAMME,,214502
York Teaching Hospital NHS Foundation Trust,York Teaching Hospital Facilities Management LLP BU,20/03/2020,Tax And Social Security Costs < One Year,LLP Inland Revenue,Hm Revenue And Customs,475PS01299816FEB2020,337964.1,LLP Inland Revenue Income Tax,HMRC LLP FEB 2020,,LLP FINANCE - BALANCE SHEET,LLP TAX & SUPERANUATION,,219544
York Teaching Hospital NHS Foundation Trust,York Teaching Hospital Facilities Management LLP BU,20/03/2020,Work-In-Progress,Capital,Protec Fire Detection Plc,SP001247-28,54251.69,LLP Sgh Fire Alarm Capital Scheme,RCBF400001787 - (REPLACES 4111153339) � PROTEC � CB - ORDER TO CARRY OUT SERVICES TO INSTALL REPLACEMENT FIRE ALARM SYSTEM SCARBOROUGH HOSPITAL  314020 - 112000,,TRANSPORT,TRANSPORT,,314020
York Teaching Hospital NHS Foundation Trust,York Teaching Hospital Facilities Management LLP BU,31/03/2020,Med Surg Eqpt Mtce Contracts,LLP Medical Engineering,De Soutter Medical Ltd,520421,63971.16,LLP Medical Engineering - Sgh,LGM26711 - SURGICAL TOOLS CONTRACT FOR ONE YEAR FROM 01/01/20 TO 31/12/20SUPPLIER REF NO CLI00286/NOECPC/KS,,LLP ESTATES & FACILITIES_OLD,LLP EBME,,254730
York Teaching Hospital NHS Foundation Trust,York Teaching Hospital Facilities Management LLP BU,31/03/2020,External Contracts : Laundry,LLP Laundry & Linen,Synergy Health Managed Services Ltd,40003548,53972.57,LLP Laundry & Linen - Scarb,"LAUNDRY CONTRACT FOR SCARBOROUGH, BRIDLINGTON & MALTON AS PER CPC FRAMEWORK CRE00064",,LLP ESTATES & FACILITIES_OLD,LLP OPERATIONAL FACILITIES - SCARBOROUGH,,253027
York Teaching Hospital NHS Foundation Trust,York Teaching Hospital Facilities Management LLP BU,31/03/2020,Vat Debtor < One Year,LLP,Synergy Health Managed Services Ltd,40003548,53972.57,LLP Dr Vat Debtor,RCBF400001420,BA STD REC,LLP FINANCE - BALANCE SHEET,LLP DEBTORS,,219405
York Teaching Hospital NHS Foundation Trust,York Teaching Hospital Facilities Management LLP BU,31/03/2020,Contract : Refuse And Clinical Waste,LLP,Leeds Teaching Hospitals Nhs Trust,1410150801,157980.94,LLP Clinical Waste Disposal (York),CLINICAL WASTE SUPPLIER HOSTING ARRANGEMENTS (MITIE) APRIL 19 - MARCH 20,,LLP ESTATES & FACILITIES_OLD,LLP OPERATIONAL FACILITIES - YORK,,212801
York Teaching Hospital NHS Foundation Trust,York Teaching Hospital Facilities Management LLP BU,31/03/2020,Contract : Refuse And Clinical Waste,LLP,Leeds Teaching Hospitals Nhs Trust,1410154320,118261.51,LLP Clinical Waste Disposal (York),CLINICAL WASTE SUPPLIER HOSTING ARRANGEMENTS (MITIE) APRIL 19 - MARCH 20,,LLP ESTATES & FACILITIES_OLD,LLP OPERATIONAL FACILITIES - YORK,,212801
York Teaching Hospital NHS Foundation Trust,York Teaching Hospital Facilities Management LLP BU,31/03/2020,Med Surg Eqpt Mtce Contracts,LLP Medical Engineering - York,Nhs Supply Chain - Maintenance,2010006705,63852.3,LLP Medical Engineering - York,01/04/2020 - 31/03/2021 - LGM24612 - (Avensys) - Fully comprehensive - Maintenance of various Olympus Electro medical equipment - Full details in the items form - mini-competition through the NHSSC framework Lot 2 � York Hospital ,,LLP ESTATES & FACILITIES_OLD,LLP EBME,,212838
York Teaching Hospital NHS Foundation Trust,York Teaching Hospital Facilities Management LLP BU,31/03/2020,Med Surg Eqpt Mtce Contracts,LLP Medical Engineering - Sgh,Nhs Supply Chain,2010006707,55512.79,LLP Medical Engineering - Sgh,REPLACES 4111140578 01/04/2017 - 31/03/2022 - LGM25969 - (MIUS) - Maintenance of Ultrasound equipment based at Scarborough Hospital - Lots 1 and 2 of mini competition managed through NHS Supply Chain by Leaseguard - Full details in item,,LLP ESTATES & FACILITIES_OLD,LLP EBME,,254730
York Teaching Hospital NHS Foundation Trust,York Teaching Hospital Facilities Management LLP BU,31/03/2020,Med Surg Eqpt Mtce Contracts,LLP Care Group 4,Nhs Supply Chain - Maintenance,2010006714,38757.57,Annual Maintenance Contracts,REPLACES 4111134411 01/04/2017 - 31/03/2022 - LGM24652 - (Medical Imaging systems Ltd) - Platinum Plus - Maintenance of Samsung XGEO General Xray system - Serial No: S07JM3ADB00001W  - Malton Hospital - Quote Ref: CQ-0000254865,,LLP ESTATES & FACILITIES_OLD,LLP EBME,,212850
York Teaching Hospital NHS Foundation Trust,York Teaching Hospital Facilities Management LLP BU,31/03/2020,X-Ray Equipment : Maintenance,LLP Care Group 4,Nhs Supply Chain - Maintenance,2010006716,193083.08,Annual Maintenance Contracts,REPLACES RCBN400020724 - 01/04/2019 - 31/03/2022 - (Siemens) - Maintenance of Siemens Radiology Equipment - Full details can be found within the items and cost form - Tender ref: LGM25121 - Lot 2,,LLP ESTATES & FACILITIES_OLD,LLP EBME,,212850
York Teaching Hospital NHS Foundation Trust,York Teaching Hospital Facilities Management LLP BU,31/03/2020,X-Ray Equipment : Maintenance,LLP Care Group 4,Nhs Supply Chain - Maintenance,2010006717,135534,Annual Maintenance Contracts,"REPLACES 4111133229 - 07/10/2017 - 31/03/2022 - LGM24649 - (Hologic) - Platinum Maintenance of Hologic Mammography equipment 81007166841, 8200316514, 85002140253 - Quote ref: CQ-0000254807",,LLP ESTATES & FACILITIES_OLD,LLP EBME,,212850
York Teaching Hospital NHS Foundation Trust,York Teaching Hospital Facilities Management LLP BU,31/03/2020,Med Surg Eqpt Mtce Contracts,LLP Medical Engineering - Sgh,Nhs Supply Chain - Maintenance,2010006721,36517.89,LLP Medical Engineering - Sgh,LGM23538 - CQ-0000275403 - NHS-C - 01/04/2020 TO 31/03/2021 - MAINTENANCE OF AGREED ASSET LIST OF DRAEGER MEDICAL EQUIPMENT AT SCARBOROUGH HOSPITAL ,,LLP ESTATES & FACILITIES_OLD,LLP EBME,,254730
York Teaching Hospital NHS Foundation Trust,York Teaching Hospital Facilities Management LLP BU,31/03/2020,X-Ray Equipment : Maintenance,LLP Care Group 4,Nhs Supply Chain - Maintenance,2010007492,58204.2,Annual Maintenance Contracts,7/11/18 - 5/4/24 - LGM26077 - (MIS) - Platinum plus service contract for Samsung digital x-ray equipment at York Hospital - Quote ref: CQ-000268267,,LLP ESTATES & FACILITIES_OLD,LLP EBME,,212850
York Teaching Hospital NHS Foundation Trust,York Teaching Hospital Facilities Management LLP BU,31/03/2020,X-Ray Equipment : Maintenance,LLP Care Group 4,Nhs Supply Chain - Maintenance,2010007639,70474.31,Annual Maintenance Contracts,CN: ANNUAL CONTRACT FOR CANON AQUILLON CT SCANNER 01/04/20 TO 31/02/21 - LGM23776 AS PER NHS SUPPLY CHAIN REF CQ-0000275242 GOLD PLUS COVER,,LLP ESTATES & FACILITIES_OLD,LLP EBME,,212850
York Teaching Hospital NHS Foundation Trust,York Teaching Hospital Facilities Management LLP BU,31/03/2020,Contract : Premises Security,LLP General Security,Ocs Group Uk Ltd,5000401197,87369.6,LLP General Security,1st June 19'- 31st May 20' OCS Contract YTH,,LLP ESTATES & FACILITIES_OLD,LLP HEALTH SAFETY & SECURITY,,212804
York Teaching Hospital NHS Foundation Trust,York Teaching Hospital Facilities Management LLP BU,31/03/2020,Work-In-Progress,Capital,Nhs Supply Chain - Maintenance,9050002220,297030.72,Trust Board,URN - MDC 1138 FLE 20 - ELE WIRELESS + ASSOCIATED EQUIPMENT - 2X LUCERA COLONOSCOPE - 2X LUCERA GASTROSCOPE - SCOPEGUIDE - UCR-WM-P2 SERIES - OFP-2 STARTER SET - SONY UP-25MD PRINTER - REF - 2014S 193 340468,,OFFICE OF THE CHIEF EXECUTIVE,OFFICE OF THE CHIEF EXECUTIVE,,314001
York Teaching Hospital NHS Foundation Trust,York Teaching Hospital Facilities Management LLP BU,31/03/2020,Staff Uniforms and Clothing,Uniforms,Behrens Healthcare,IN0147557,75884.82,LLP Clinical Uniforms, CLINICAL UNIFORM ORDER; SBS/15/SW/BAZ/8828 ,,LLP ESTATES & FACILITIES_OLD,LLP OPERATIONAL FACILITIES - YORK,,212891
